bitfinex-derivatives/quotes_SOLF0:USTF0_20250125
["timestamp","ask_amount","ask_price","bid_price","bid_amount"]
[1737804033938,4.0294,248.21,248.19,0.02688046]
[1737804034239,5.98025577,248.23,248.19,0.02688046]
[1737804034739,4.0296,248.2,248.19,0.02688046]
[1737804037942,5.98025577,248.23,248.19,0.02688046]
[1737804037943,4.0294,248.22,248.19,0.02688046]
[1737804038842,4.0295,248.21,248.19,0.02688046]
[1737804041844,0.02597039,248.23,248.19,0.02688046]
[1737804042045,0.02597039,248.23,248.2,5.95428538]
[1737804046448,4.05507039,248.23,248.2,5.95428538]
[1737804048649,4.0293,248.22,248.19,0.02688046]
[1737804053248,4.0294,248.21,248.19,0.02688046]
[1737804054650,4.0296,248.2,248.19,0.02688046]
[1737804062149,5.95428538,248.21,248.19,0.02688046]
[1737804062454,4.0293,248.22,248.19,0.02688046]
[1737804062654,5.98025577,248.23,248.19,0.02688046]
[1737804063656,0.02597039,248.23,248.19,0.02688046]
[1737804063850,0.02597039,248.23,248.19,5.98116584]
[1737804064052,0.02597039,248.23,248.21,5.95428538]
[1737804066756,0.02597039,248.23,248.19,5.98116584]
[1737804071859,4.05507039,248.23,248.19,5.98116584]
[1737804072061,0.02597039,248.23,248.19,5.98116584]
[1737804072459,4.0294,248.21,248.19,5.98116584]
[1737804073959,0.02597039,248.23,248.19,5.98116584]
[1737804074160,0.02597039,248.23,248.22,5.95428538]
[1737804075161,0.02597039,248.23,248.22,9.98348538]
[1737804087066,4.0278,248.31,248.27,4.0283]
[1737804087370,4.0278,248.31,248.27,9.98258538]
[1737804087572,55.06495326,248.37,248.27,5.95428538]
[1737804087871,4.0276,248.33,248.27,5.95428538]
[1737804088170,0.02766966,248.32,248.28,0.02755414]
[1737804088677,0.02766966,248.32,248.29,4.028]
[1737804088881,0.02766966,248.32,248.28,0.02755414]
[1737804090180,0.02766966,248.32,248.28,4.05585414]
[1737804091778,0.02766966,248.32,248.28,0.02755414]
[1737804093980,4.05536966,248.32,248.28,0.02755414]
[1737804094684,4.0278,248.31,248.28,0.02755414]
[1737804094979,0.02766966,248.32,248.28,0.02755414]
[1737804095183,5.95428538,248.31,248.28,0.02755414]
[1737804095781,4.0281,248.3,248.28,0.02755414]
[1737804096381,0.02766966,248.32,248.28,0.02755414]
[1737804098581,4.05536966,248.32,248.28,0.02755414]
[1737804098973,0.02766966,248.32,248.28,0.02755414]
[1737804099876,4.0279,248.3,248.28,0.02755414]
[1737804101179,4.0281,248.29,248.28,0.02755414]
[1737804104183,9.98238538,248.29,248.28,0.02755414]
[1737804112485,9.98238538,248.29,248.28,0.00158375]
[1737804115496,4.0281,248.29,248.28,0.00158375]
[1737804117697,9.98238538,248.29,248.28,0.00158375]
[1737804119497,4.0296,248.2,248.17,5.95428538]
[1737804119993,5.95428538,248.24,248.17,5.95428538]
[1737804120294,5.95428538,248.26,248.17,5.95428538]
[1737804120692,4.0293,248.22,248.19,0.03009025]
[1737804123091,0.02675141,248.24,248.19,0.03009025]
[1737804123092,5.98103679,248.24,248.19,0.03009025]
[1737804123995,4.0296,248.2,248.19,0.03009025]
[1737804124195,9.98388538,248.2,248.19,0.03009025]
[1737804129202,5.95428538,248.2,248.08,4.5619426]
[1737804129396,1.267,248.23,248.02,5.95428538]
[1737804129397,5.95428538,248.1,248.02,5.95428538]
[1737804130503,0.02739883,248.08,248.04,0.03067343]
[1737804130699,4.05889883,248.08,248.04,0.03067343]
[1737804130901,0.02739883,248.08,248.04,5.98495881]
[1737804131103,0.02739883,248.08,248.06,5.95428538]
[1737804131707,0.02739883,248.08,248.04,5.98495881]
[1737804132801,0.02739883,248.08,248.04,0.03067343]
[1737804133007,4.0318,248.07,248.04,0.03067343]
[1737804133608,4.0319,248.06,248.04,0.03067343]
[1737804134411,4.0319,248.06,248.04,5.98495881]
[1737804134914,4.0319,248.06,248.04,0.03067343]
[1737804136811,0.02739883,248.08,248.04,0.03067343]
[1737804137013,4.032,248.05,248.04,0.03067343]
[1737804138815,4.0317,248.07,248.04,5.98495881]
[1737804140417,4.0318,248.06,248.04,0.03067343]
[1737804140919,0.02739883,248.08,248.04,0.03067343]
[1737804141917,5.98168421,248.08,248.04,0.03067343]
[1737804142117,4.032,248.05,248.04,0.03067343]
[1737804142619,0.02739883,248.08,248.04,0.03067343]
[1737804144121,4.0317,248.07,248.04,0.03067343]
[1737804145022,0.02739883,248.08,248.04,0.03067343]
[1737804145723,0.02739883,248.08,248.04,5.98495881]
[1737804147119,0.02739883,248.08,248.04,0.03067343]
[1737804148124,4.05899883,248.08,248.04,0.03067343]
[1737804148925,4.0317,248.07,248.04,0.03067343]
[1737804149225,0.02739883,248.08,248.04,0.03067343]
[1737804149422,5.98168421,248.08,248.04,0.03067343]
[1737804151126,4.032,248.05,248.04,0.03067343]
[1737804153426,4.032,248.05,248.04,7.343e-05]
[1737804153822,4.032,248.05,246.31,31.96371658]
[1737804153823,18.04428538,248.05,247.88,10.73603841]
[1737804154028,5.95428538,247.9,247.88,10.73603841]
[1737804154228,5.95428538,247.9,247.83,168.5560529]
[1737804154422,5.95428538,247.87,247.83,168.5560529]
[1737804154928,5.95428538,247.87,247.84,224.76970095]
[1737804155130,9.98918538,247.87,247.84,224.76970095]
[1737804155432,5.95428538,247.87,247.84,224.76970095]
[1737804157434,5.95428538,247.87,247.84,0.02829705]
[1737804158230,5.98053844,247.89,247.84,0.02829705]
[1737804160239,0.02625306,247.89,247.84,0.02829705]
[1737804161241,0.02625306,247.89,247.85,4.0352]
[1737804161537,0.02625306,247.89,247.84,0.02829705]
[1737804161937,0.02625306,247.89,247.85,4.0352]
[1737804162942,0.02625306,247.89,247.84,0.02829705]
[1737804164743,0.02625306,247.89,247.86,4.035]
[1737804165842,0.02625306,247.89,247.87,4.0349]
[1737804168049,0.02625306,247.89,247.84,0.02829705]
[1737804168746,0.02625306,247.89,247.86,4.0351]
[1737804168947,0.02625306,247.89,247.84,0.02829705]
[1737804171449,4.06085306,247.89,247.84,0.02829705]
[1737804172246,0.02625306,247.89,247.84,0.02829705]
[1737804174255,5.95428538,247.88,247.84,0.02829705]
[1737804174445,9.98908538,247.88,247.84,0.02829705]
[1737804175148,4.0349,247.87,247.84,0.02829705]
[1737804175354,5.95428538,247.88,247.84,0.02829705]
[1737804175852,4.0349,247.87,247.84,0.02829705]
[1737804176953,4.0352,247.86,247.84,0.02829705]
[1737804178360,5.95428538,247.88,247.84,0.02829705]
[1737804178657,4.0352,247.85,247.84,0.02829705]
[1737804189266,4.035,247.87,247.84,0.02829705]
[1737804190263,9.98908538,247.88,247.84,0.02829705]
[1737804190469,5.95428538,247.88,247.84,0.02829705]
[1737804192067,4.035,247.87,247.84,0.02829705]
[1737804194765,0.02625306,247.89,247.84,0.02829705]
[1737804195167,0.02625306,247.89,247.84,5.98258243]
[1737804195970,0.02625306,247.89,247.86,4.0349]
[1737804197272,5.95428538,248.0,247.88,5.95428538]
[1737804197472,5.95428538,248.0,247.84,0.02829705]
[1737804197473,5.95428538,248.0,247.91,5.95428538]
[1737804197768,5.95428538,247.98,247.91,5.95428538]
[1737804197968,4.0335,247.96,247.91,5.95428538]
[1737804198470,4.06020494,247.96,247.91,5.98491428]
[1737804201174,4.06020494,247.96,247.91,0.0306289]
[1737804201765,9.98838538,247.92,247.91,0.0306289]
[1737804204673,5.95428538,247.92,247.81,5.95428538]
[1737804204874,5.95428538,247.89,247.81,5.95428538]
[1737804205474,9.98868538,247.91,247.84,4.0354]
[1737804205873,4.06310262,247.9,247.85,0.02617653]
[1737804208180,4.0347,247.89,247.85,0.02617653]
[1737804209070,0.02870262,247.9,247.85,0.02617653]
[1737804209273,5.95428538,247.89,247.85,0.02617653]
[1737804209678,4.0351,247.86,247.85,0.02617653]
[1737804218688,5.95428538,247.87,247.85,0.02617653]
[1737804218883,4.0348,247.88,247.85,0.02617653]
[1737804220282,9.98898538,247.89,247.85,0.02617653]
[1737804220878,4.0348,247.88,247.85,0.02617653]
[1737804221785,0.02870262,247.9,247.85,0.02617653]
[1737804221989,0.02870262,247.9,247.85,5.98046191]
[1737804222383,0.02870262,247.9,247.87,5.95428538]
[1737804223088,0.02870262,247.9,247.88,4.0348]
[1737804223285,0.02870262,247.9,247.87,5.95428538]
[1737804224290,0.02870262,247.9,247.85,0.02617653]
[1737804225283,4.06320262,247.9,247.85,0.02617653]
[1737804228495,0.02870262,247.9,247.85,0.02617653]
[1737804228896,5.95428538,247.87,247.85,0.02617653]
[1737804229194,4.0351,247.86,247.85,0.02617653]
[1737804231001,4.0351,247.87,247.85,0.02617653]
[1737804231201,0.02870262,247.9,247.85,5.98046191]
[1737804232303,0.02870262,247.9,247.86,4.035]
[1737804232605,0.02870262,247.9,247.85,5.98046191]
[1737804232907,4.0348,247.88,247.85,0.02617653]
[1737804233901,4.0351,247.86,247.85,0.02617653]
[1737804237209,4.0351,247.86,247.85,7.653e-05]
[1737804237915,4.0366,247.77,247.71,1.3357]
[1737804238111,5.95428538,247.79,247.71,7.28998538]
[1737804238812,4.0364,247.78,247.71,11.32748538]
[1737804239013,0.02743016,247.77,247.73,0.02756909]
[1737804240914,9.99118538,247.75,247.73,0.02756909]
[1737804242915,5.95428538,247.75,247.73,0.02756909]
[1737804243116,4.037,247.74,247.73,0.02756909]
[1737804245611,0.02743016,247.77,247.73,0.02756909]
[1737804247319,4.06403016,247.77,247.73,0.02756909]
[1737804248214,0.02743016,247.77,247.75,5.95428538]
[1737804249120,0.02743016,247.77,247.75,9.99108538]
[1737804250320,0.02743016,247.77,247.75,5.95428538]
[1737804253519,0.02743016,247.77,247.73,5.98185447]
[1737804253721,4.0367,247.76,247.73,0.02756909]
[1737804254723,4.0369,247.75,247.73,0.02756909]
[1737804257724,4.037,247.74,247.73,0.02756909]
[1737804259719,9.99128538,247.74,247.73,0.02756909]
[1737804260125,9.99128538,247.74,247.73,6.909e-05]
[1737804274934,5.95428538,247.74,247.61,9.99338538]
[1737804275130,4.0383,247.67,247.61,9.99338538]
[1737804275436,5.95428538,247.62,247.55,7.29658538]
[1737804275835,5.95428538,247.62,247.55,1.3423]
[1737804275836,4.0392,247.61,247.55,1.3423]
[1737804276136,0.02977766,247.6,247.56,0.02361209]
[1737804276637,4.0395,247.59,247.56,0.02361209]
[1737804278035,0.02977766,247.6,247.56,0.02361209]
[1737804279436,0.02977766,247.6,247.57,5.95428538]
[1737804281337,0.02977766,247.6,247.56,0.02361209]
[1737804282340,4.06907766,247.6,247.56,0.02361209]
[1737804284945,0.02977766,247.6,247.56,4.06351209]
[1737804285444,5.98406304,247.6,247.56,0.02361209]
[1737804285745,4.0395,247.59,247.56,0.02361209]
[1737804286343,4.0397,247.58,247.56,0.02361209]
[1737804286942,5.98406304,247.6,247.56,0.02361209]
[1737804288648,4.06917766,247.6,247.56,4.06341209]
[1737804290349,5.98406304,247.6,247.56,0.02361209]
[1737804290549,4.0398,247.57,247.56,0.02361209]
[1737804293853,5.95428538,247.58,247.49,5.95428538]
[1737804294152,4.0405,247.53,247.49,5.95428538]
[1737804294958,4.041,247.5,247.47,5.95428538]
[1737804295649,4.0407,247.52,247.47,5.95428538]
[1737804295855,0.02589358,247.53,247.51,5.95428538]
[1737804296155,0.02589358,247.53,247.52,4.0406]
[1737804296655,0.02589358,247.53,247.51,5.95428538]
[1737804297357,0.02589358,247.53,247.51,9.99508538]
[1737804298659,0.02589358,247.53,247.52,4.0406]
[1737804302858,0.02589358,247.53,247.49,5.95428538]
[1737804303163,0.02589358,247.53,247.5,4.0408]
[1737804303865,0.02589358,247.53,247.49,5.95428538]
[1737804304061,0.02589358,247.53,247.51,4.0408]
[1737804305957,0.02589358,247.53,247.52,4.0406]
[1737804318272,5.95428538,247.65,247.52,2.54]
[1737804318467,4.0385,247.65,247.6,9.99348538]
[1737804319579,4.06756973,247.65,247.6,10.01979011]
[1737804321576,0.02906973,247.65,247.61,4.0391]
[1737804321776,0.02906973,247.65,247.6,5.98059011]
[1737804322175,0.02906973,247.65,247.61,4.0391]
[1737804323078,0.02906973,247.65,247.62,5.95428538]
[1737804324079,0.02906973,247.65,247.63,4.0387]
[1737804325382,5.95428538,247.72,247.64,5.95428538]
[1737804325680,5.95428538,247.7,247.62,5.95428538]
[1737804325882,4.0382,247.68,247.62,5.95428538]
[1737804326573,0.02563271,247.67,247.65,4.0385]
[1737804326782,0.02563271,247.67,247.63,0.02750761]
[1737804326983,0.02563271,247.67,247.64,5.95428538]
[1737804328082,0.02563271,247.67,247.65,4.0385]
[1737804328283,0.02563271,247.67,247.64,5.95428538]
[1737804329084,0.02563271,247.67,247.64,9.99298538]
[1737804329776,0.02563271,247.67,247.63,0.02750761]
[1737804329982,0.02563271,247.67,247.66,9.99258538]
[1737804331882,4.0372,247.74,247.7,4.0377]
[1737804332085,4.0372,247.74,247.72,5.95428538]
[1737804332878,5.95428538,247.8,247.72,5.95428538]
[1737804333079,0.03013604,247.75,247.74,5.95428538]
[1737804333278,2.6317,247.81,247.74,5.95428538]
[1737804333482,2.6317,247.81,247.76,5.95428538]
[1737804333687,0.02621711,247.77,247.76,5.95428538]
[1737804334681,5.95428538,247.86,247.76,5.95428538]
[1737804334885,5.95428538,247.86,247.79,5.95428538]
[1737804335187,4.0354,247.85,247.79,5.95428538]
[1737804335687,4.0354,247.85,247.81,5.95428538]
[1737804335882,0.02929298,247.84,247.81,5.95428538]
[1737804338180,5.98357836,247.84,247.8,0.02957241]
[1737804338387,5.95428538,247.82,247.8,0.02957241]
[1737804339290,4.0359,247.81,247.8,0.02957241]
[1737804341987,4.0359,247.81,247.8,7.241e-05]
[1737804342196,4.0372,247.73,247.7,5.95428538]
[1737804342389,4.0372,247.73,247.68,5.95428538]
[1737804343297,0.02832904,247.73,247.71,5.95428538]
[1737804343595,0.02832904,247.73,247.72,4.0374]
[1737804343790,0.02832904,247.73,247.71,5.95428538]
[1737804347196,4.0374,247.72,247.71,5.95428538]
[1737804349601,4.06552904,247.73,247.71,5.95428538]
[1737804349792,0.02832904,247.73,247.71,5.95428538]
[1737804350196,4.0374,247.72,247.71,5.95428538]
[1737804350500,5.98261442,247.73,247.68,0.0310043]
[1737804351200,0.02832904,247.73,247.69,5.95428538]
[1737804351396,0.02832904,247.73,247.71,5.95428538]
[1737804351699,0.02832904,247.73,247.72,4.0374]
[1737804352099,0.02832904,247.73,247.71,5.95428538]
[1737804352697,4.0374,247.72,247.69,5.95428538]
[1737804354900,4.0374,247.72,247.71,5.95428538]
[1737804357303,0.02832904,247.73,247.68,0.0310043]
[1737804357304,4.0379,247.69,247.68,0.0310043]
[1737804357504,5.98261442,247.73,247.68,0.0310043]
[1737804357505,0.02832904,247.73,247.68,0.0310043]
[1737804357704,0.02832904,247.73,247.7,5.95428538]
[1737804358401,0.02832904,247.73,247.72,5.95428538]
[1737804361902,0.02832904,247.73,247.72,9.99168538]
[1737804362106,5.95428538,247.85,247.72,5.95428538]
[1737804362403,5.95428538,247.85,247.78,5.95428538]
[1737804362907,5.95428538,247.87,247.78,5.95428538]
[1737804363106,4.036,247.81,247.78,5.95428538]
[1737804363307,0.02813241,247.85,247.8,5.98429198]
[1737804363508,4.0352,247.86,247.8,5.95428538]
[1737804363808,0.02985233,247.85,247.8,5.98083623]
[1737804364905,0.02985233,247.85,247.84,5.95428538]
[1737804369309,0.02985233,247.85,247.8,0.02655085]
[1737804370416,4.06525233,247.85,247.8,0.02655085]
[1737804370617,0.02985233,247.85,247.8,0.02655085]
[1737804372215,4.0354,247.84,247.8,5.98083623]
[1737804373119,4.0356,247.83,247.8,5.98083623]
[1737804373817,0.02985233,247.85,247.82,5.95428538]
[1737804374017,0.02985233,247.85,247.84,5.95428538]
[1737804376321,0.02985233,247.85,247.84,9.98968538]
[1737804383524,0.02985233,247.85,247.84,5.95428538]
[1737804387226,4.0356,247.84,247.81,5.95428538]
[1737804388029,4.0357,247.83,247.81,5.95428538]
[1737804391131,4.0357,247.82,247.81,5.95428538]
[1737804391331,0.02985233,247.85,247.8,0.02655085]
[1737804391830,4.0359,247.81,247.8,0.02655085]
[1737804396128,0.02985233,247.85,247.8,0.02655085]
[1737804396327,0.02985233,247.85,247.81,5.95428538]
[1737804397240,4.0356,247.83,247.81,5.95428538]
[1737804398640,4.0357,247.82,247.81,5.95428538]
[1737804400339,4.0356,247.83,247.81,5.95428538]
[1737804401140,4.06515233,247.85,247.81,5.95428538]
[1737804401341,0.02985233,247.85,247.83,5.95428538]
[1737804401742,0.02985233,247.85,247.83,9.98978538]
[1737804402742,0.02985233,247.85,247.84,4.0354]
[1737804405943,8.75588538,247.98,247.83,5.95428538]
[1737804406146,8.75588538,247.98,247.9,5.95428538]
[1737804407136,8.75588538,247.98,247.92,0.03091772]
[1737804407137,0.02602755,247.96,247.92,0.03091772]
[1737804408238,4.0338,247.94,247.92,0.03091772]
[1737804409648,4.05952755,247.96,247.92,5.9852031]
[1737804409849,4.05952755,247.96,247.94,5.95428538]
[1737804410151,0.02602755,247.96,247.94,5.95428538]
[1737804414258,0.02602755,247.96,247.92,5.9852031]
[1737804415058,4.0336,247.95,247.92,5.9852031]
[1737804416758,4.0336,247.95,247.94,5.95428538]
[1737804418759,0.02602755,247.96,247.94,5.95428538]
[1737804418963,0.02602755,247.96,247.95,4.0336]
[1737804420055,11.55015173,248.22,247.94,5.95428538]
[1737804420260,3.8912,248.2,248.15,5.95428538]
[1737804420451,4.0301,248.17,248.15,5.95428538]
[1737804421260,0.03048329,248.18,248.15,5.95428538]
[1737804421652,0.03048329,248.18,248.14,0.02608841]
[1737804421858,4.06038329,248.18,248.14,0.02608841]
[1737804422060,0.03048329,248.18,248.14,0.02608841]
[1737804422362,0.03048329,248.18,248.15,9.34989185]
[1737804424458,0.03048329,248.18,248.15,13.38029185]
[1737804425360,0.03048329,248.18,248.16,4.0302]
[1737804425555,3.8912,248.27,248.15,9.34989185]
[1737804425757,3.8912,248.27,248.18,9.34989185]
[1737804425958,4.029,248.24,248.18,13.37969185]
[1737804426660,4.029,248.24,248.18,9.34989185]
[1737804426856,0.02886969,248.23,248.19,0.03098053]
[1737804427362,12.02589185,248.36,248.22,9.34989185]
[1737804427662,13.29959185,248.36,248.22,9.34989185]
[1737804427958,4.0284,248.27,248.22,9.34989185]
[1737804428661,4.05772134,248.27,248.22,9.37536602]
[1737804429161,4.0286,248.26,248.22,9.37536602]
[1737804429359,0.02932134,248.27,248.22,0.02547417]
[1737804430061,4.0289,248.24,248.22,0.02547417]
[1737804432355,4.0291,248.23,248.22,0.02547417]
[1737804434664,4.0291,248.23,248.22,7.417e-05]
[1737804442372,9.34989185,248.24,248.05,9.34989185]
[1737804442675,9.34989185,248.19,248.05,9.34989185]
[1737804442879,9.34989185,248.19,248.02,9.34989185]
[1737804443578,0.02751924,248.13,248.08,0.02823159]
[1737804445081,4.0313,248.09,248.08,0.02823159]
[1737804451781,10.02069373,248.09,248.08,3.159e-05]
[1737804454079,4.0313,248.09,248.08,3.159e-05]
[1737804459587,4.0312,248.1,248.08,5.98942532]
[1737804460681,4.0309,248.12,248.08,5.98942532]
[1737804460882,0.02751924,248.13,248.08,5.98942532]
[1737804462088,4.0313,248.1,248.08,5.98942532]
[1737804465691,0.02751924,248.13,248.08,5.98942532]
[1737804467092,4.0311,248.11,248.08,5.98942532]
[1737804467593,0.02751924,248.13,248.08,5.98942532]
[1737804468293,4.0313,248.09,248.08,5.98942532]
[1737804468592,4.0313,248.09,248.08,3.159e-05]
[1737804470195,4.0312,248.1,248.08,5.98942532]
[1737804471399,4.0311,248.11,248.08,5.98942532]
[1737804471699,0.02751924,248.13,248.08,5.98942532]
[1737804471898,4.0312,248.11,248.08,5.98942532]
[1737804472697,4.0313,248.1,248.08,5.98942532]
[1737804473599,4.0313,248.09,248.08,5.98942532]
[1737804478004,4.0313,248.09,248.08,3.159e-05]
[1737804481806,4.0313,248.09,248.08,5.98942532]
[1737804484409,0.02751924,248.13,248.08,5.98942532]
[1737804484613,4.0309,248.12,248.11,5.98939373]
[1737804488504,4.05831924,248.13,248.11,5.98939373]
[1737804489507,0.02751924,248.13,248.11,5.98939373]
[1737804489709,4.0309,248.12,248.11,5.98939373]
[1737804499422,0.02751924,248.13,248.11,5.98939373]
[1737804500214,0.02751924,248.13,248.11,10.02039373]
[1737804504626,0.02751924,248.13,248.12,4.0309]
[1737804505324,4.0297,248.2,248.15,4.0303]
[1737804505526,4.0297,248.2,248.18,5.98939373]
[1737804509129,4.0299,248.18,248.17,0.02915735]
[1737804514837,0.02837196,248.21,248.17,0.02915735]
[1737804514838,7.196e-05,248.21,248.17,6.01855108]
[1737804515035,6.92946635,248.38,248.2,5.98939373]
[1737804515334,6.92946635,248.38,248.33,5.98939373]
[1737804516036,6.92946635,248.38,248.31,5.98939373]
[1737804516237,6.95808774,248.38,248.33,0.02613029]
[1737804516640,5.62448774,248.38,248.33,6.01552402]
[1737804518038,0.02862139,248.38,248.33,6.01552402]
[1737804519133,0.02862139,248.38,248.33,0.02613029]
[1737804520242,4.0271,248.36,248.33,0.02613029]
[1737804520642,0.02862139,248.38,248.33,0.02613029]
[1737804522246,4.0272,248.35,248.33,0.02613029]
[1737804523453,4.0269,248.37,248.33,6.01552402]
[1737804523653,4.0269,248.37,248.35,5.98939373]
[1737804524753,0.02862139,248.38,248.35,5.98939373]
[1737804525851,0.02862139,248.38,248.33,6.01552402]
[1737804526051,6.01801512,248.38,248.33,0.02613029]
[1737804526847,0.02862139,248.38,248.33,0.02613029]
[1737804527048,4.0273,248.34,248.33,0.02613029]
[1737804527255,4.0273,248.34,248.33,6.01552402]
[1737804527657,4.027,248.37,248.33,6.01552402]
[1737804527851,0.02862139,248.38,248.36,5.98939373]
[1737804530148,5.98939373,248.51,248.36,5.98939373]
[1737804530351,5.98939373,248.51,248.44,5.98939373]
[1737804531358,4.0254,248.46,248.45,0.03041891]
[1737804533053,5.98939373,248.47,248.4,5.98939373]
[1737804533252,4.0259,248.43,248.4,5.98939373]
[1737804533459,5.98939373,248.51,248.42,5.98939373]
[1737804534251,4.0251,248.48,248.44,0.02779723]
[1737804534453,4.0251,248.48,248.44,6.01719096]
[1737804536458,4.0252,248.47,248.44,6.01719096]
[1737804536657,0.02988398,248.49,248.44,6.01719096]
[1737804536952,0.02988398,248.49,248.44,0.02779723]
[1737804537155,0.02988398,248.49,248.44,6.01719096]
[1737804539058,4.0253,248.47,248.44,6.01719096]
[1737804540155,4.0255,248.45,248.44,6.01719096]
[1737804542059,4.0253,248.47,248.44,6.01719096]
[1737804542762,0.02988398,248.49,248.46,5.98939373]
[1737804542958,0.02988398,248.49,248.48,5.98939373]
[1737804544864,0.02988398,248.49,248.48,10.01439373]
[1737804545463,5.98939373,248.67,248.55,4.0238]
[1737804545667,5.98939373,248.69,248.61,5.98939373]
[1737804546562,0.02923687,248.67,248.63,0.02778655]
[1737804547369,4.0222,248.66,248.63,6.01718028]
[1737804547766,0.02923687,248.67,248.65,5.98939373]
[1737804548062,0.02923687,248.67,248.63,6.01718028]
[1737804548663,4.0221,248.66,248.63,6.01718028]
[1737804548963,0.02923687,248.67,248.63,6.01718028]
[1737804550066,4.0223,248.65,248.63,6.01718028]
[1737804550260,4.0223,248.65,248.63,0.02778655]
[1737804551176,0.02923687,248.67,248.63,6.01718028]
[1737804551469,4.05133687,248.67,248.65,5.98939373]
[1737804552366,4.0224,248.64,248.63,6.01718028]
[1737804555469,4.0224,248.64,248.63,0.02778655]
[1737804556072,4.0234,248.58,248.57,5.98939373]
[1737804556573,5.98939373,248.63,248.55,5.98939373]
[1737804556772,4.0238,248.56,248.55,5.98939373]
[1737804557276,5.98939373,248.57,248.53,4.316e-05]
[1737804557475,5.98939373,248.55,248.47,5.98939373]
[1737804557775,5.98939373,248.53,248.45,10.54542179]
[1737804558577,0.02868317,248.51,248.47,0.02695377]
[1737804558969,4.05328317,248.51,248.47,0.02695377]
[1737804559167,0.02868317,248.51,248.47,6.0163475]
[1737804559677,0.02868317,248.51,248.47,0.02695377]
[1737804560077,0.02868317,248.51,248.47,4.05205377]
[1737804560979,4.0249,248.49,248.47,0.02695377]
[1737804563679,0.02868317,248.51,248.47,0.02695377]
[1737804563680,4.025,248.48,248.47,0.02695377]
[1737804573988,4.0258,248.44,248.35,9.32536094]
[1737804574287,9.32536094,248.5,248.39,4.0265]
[1737804574478,9.32536094,248.5,248.35,9.32536094]
[1737804575084,0.0290765,248.45,248.4,0.02884899]
[1737804575977,0.0290765,248.45,248.42,4.0259]
[1737804576685,0.0290765,248.45,248.4,4.05514899]
[1737804578088,4.0258,248.44,248.4,4.05514899]
[1737804587903,6.00109742,248.45,248.4,0.02884899]
[1737804588102,4.0261,248.42,248.4,0.02884899]
[1737804589105,4.0258,248.43,248.4,0.02884899]
[1737804594107,4.026,248.42,248.4,0.02884899]
[1737804594309,6.00109742,248.45,248.4,0.02884899]
[1737804594605,0.0290765,248.45,248.4,0.02884899]
[1737804596111,4.0257,248.44,248.41,4.0261]
[1737804596306,0.0290765,248.45,248.4,0.02884899]
[1737804596612,5.97202092,248.42,248.4,0.02884899]
[1737804596808,5.97202092,248.42,248.31,4.0277]
[1737804597112,5.97202092,248.37,248.31,4.0277]
[1737804597318,9.99892092,248.37,248.32,4.0276]
[1737804597811,4.05699301,248.37,248.32,4.05547372]
[1737804598112,4.05699301,248.37,248.32,0.02787372]
[1737804598317,0.03009301,248.37,248.33,4.0274]
[1737804602818,0.03009301,248.37,248.33,9.99942092]
[1737804603919,4.05689301,248.37,248.33,9.99942092]
[1737804604417,0.03009301,248.37,248.33,5.97202092]
[1737804604625,5.97202092,248.35,248.32,0.02787372]
[1737804605318,4.0274,248.33,248.32,0.02787372]
[1737804606924,4.0282,248.29,248.25,5.97202092]
[1737804608121,4.05891251,248.29,248.25,6.00285795]
[1737804609728,0.03071251,248.29,248.25,6.00285795]
[1737804609923,0.03071251,248.29,248.25,0.03083703]
[1737804610725,4.05891251,248.29,248.25,0.03083703]
[1737804610926,0.03071251,248.29,248.25,0.03083703]
[1737804611726,4.0284,248.27,248.25,0.03083703]
[1737804611926,0.03071251,248.29,248.25,0.03083703]
[1737804612527,4.0285,248.27,248.25,0.03083703]
[1737804614329,4.0286,248.26,248.25,0.03083703]
[1737804616428,5.97202092,248.27,248.19,5.97202092]
[1737804617531,4.0292,248.23,248.21,0.0260403]
[1737804620928,4.0287,248.26,248.21,0.0260403]
[1737804621129,0.03071251,248.29,248.25,5.97202092]
[1737804621334,0.03071251,248.29,248.28,5.97202092]
[1737804621535,0.03071251,248.29,248.28,10.00032092]
[1737804622931,5.97202092,248.39,248.28,5.97202092]
[1737804623137,5.97202092,248.39,248.32,5.97202092]
[1737804623538,4.0266,248.39,248.34,5.97202092]
[1737804623738,5.97202092,248.41,248.34,5.97202092]
[1737804624038,1.301,248.46,248.36,5.97202092]
[1737804624039,0.03011473,248.4,248.36,5.97202092]
[1737804624239,4.0258,248.44,248.38,5.97202092]
[1737804624439,0.03076388,248.4,248.38,5.97202092]
[1737804626638,0.03076388,248.4,248.38,9.99862092]
[1737804628040,5.97202092,248.49,248.38,5.97202092]
[1737804628238,4.0248,248.5,248.43,4.0258]
[1737804628638,4.0255,248.46,248.4,5.97202092]
[1737804629036,5.97202092,248.47,248.4,5.97202092]
[1737804629236,5.97202092,248.47,248.41,0.02657535]
[1737804629237,4.05490112,248.45,248.41,0.02657535]
[1737804629540,6.00142204,248.45,248.41,0.02657535]